Cogmind - Beta 16.1 @@@ ROGUE MODE // 2026.04.03 @ 15:00:01 Player: obl-vn Result: Self-destructed Performance ------------- Evolutions (2) 1000 Regions Visited (5) 1000 Robots Destroyed (23) 115 Value Destroyed (584) 584 Prototype IDs (0) 0 Alien Tech Used (0) 0 Bonus (0) 0 TOTAL SCORE: 2699 Bonus ------- None Cogmind --------- Core Integrity 319/550 Matter 300/300 Energy 97/100 System Corruption 6% Temperature Cool (9) Movement Core (100) Ox1 Location -8/Storage Parts ------- > --- POWER (1) -------- (None) > --- PROPULSION (2) --- (None) > --- UTILITY (2) ------ (None) > --- WEAPON (6) ------- Heavy Hammer Heavy Hammer > --- INVENTORY (5) ---- Improved Hover Unit Heavy Hammer Heavy Hammer Peak State ------------ > --- POWER ------------ (None) > --- PROPULSION ------- Improved Hover Unit Improved Hover Unit > --- UTILITY ---------- Visual Processing Unit Improved Signal Interpreter > --- WEAPON ----------- Heavy Hammer Heavy Hammer Mining Claw Mining Claw Mining Claw Mining Claw > --- INVENTORY -------- Improved Hover Unit Improved Hover Unit Improved Hover Unit Heavy Hammer Heavy Hammer [Rating: 18] Favorites ----------- Power None Propulsion Improved Hover Unit Treads Light Treads Hover Unit Improved Hover Unit Utility Visual Processing Unit Device Improved Terrain Scanner Processor Visual Processing Unit Protection Light Armor Plating Weapon Heavy Hammer Energy Gun Small Laser Energy Cannon Beam Cannon Impact Weapon Heavy Hammer Slashing Weapon Mining Claw Build | -11 -10 -9 -9 -8 -8 ------- Run | Yrd Mat Mat Min Mat Sto Slots Evolved 4 | . . 2 . 2 . Power . | . . . . . . Propulsion . | . . . . . . Utility . | . . . . . . Weapon 4 | . . 2 . 2 . Parts Attached 25 | 5 5 8 . 4 3 Power . | . . . . . . Engine . | . . . . . . Core . | . . . . . . Reactor . | . . . . . . Propulsion 8 | 2 . 4 . . 2 Treads 3 | 2 . 1 . . . Leg . | . . . . . . Wheel . | . . . . . . Hover 5 | . . 3 . . 2 Flight . | . . . . . . Utility 5 | 1 1 2 . . 1 Device 1 | 1 . . . . . Storage . | . . . . . . Processor 3 | . 1 1 . . 1 Hackware . | . . . . . . Protection 1 | . . 1 . . . Artifact . | . . . . . . Weapon 12 | 2 4 2 . 4 . Energy Gun 2 | 2 . . . . . Energy Cannon 1 | . 1 . . . . Ballistic Gun . | . . . . . . Ballistic Cannon . | . . . . . . Launcher . | . . . . . . Special Weapon . | . . . . . . Impact Weapon 5 | . 3 2 . . . Slashing Weapon 4 | . . . . 4 . Piercing Weapon . | . . . . . . Special Melee Weapon . | . . . . . . Unidentified Prototypes . | . . . . . . Parts Lost 10 | . . 1 . . 9 Power . | . . . . . . Propulsion 5 | . . 1 . . 4 Utility 2 | . . . . . 2 Weapon 3 | . . . . . 3 Highest Loss Streak 9 | . . 1 . . 9 To Critical Strikes . | . . . . . . Average Backups 3 | . 3 4 4 4 4 Power . | . . . . . . Propulsion 1 | . . 1 3 3 2 Utility . | . 1 . . . . Weapon 1 | . 2 1 1 1 2 Tool/Special . | . . . . . . Unused Backups 5 | . . 4 . . 1 Power . | . . . . . . Propulsion 3 | . . 2 . . 1 Utility 1 | . . 1 . . . Weapon 1 | . . 1 . . . Tool/Special . | . . . . . . Average Slot Usage (%) 72 | . 53 70 77 79 82 Treads 9 | . 28 14 . . . Hover 11 | . . 7 22 18 16 Processor 7 | . 2 5 11 9 13 Protection 1 | . . 2 . . . Impact Weapon 34 | . 7 40 44 24 18 Slashing Weapon 5 | . . . . 27 34 Peak Build Rating 18 | 7 9 15 14 17 18 Average Rating 11 | 2 4 11 14 15 15 On Entrance 9 | . 7 6 14 14 15 Avg Prop Armor Cover (%) 32 | 29 32 . . . . Naked Turns . | . . . . . . Heaviest Build 16 | 3 6 15 12 16 14 Greatest Support 40 | 3 3 40 14 14 14 Greatest Overweight (x) 2 | . 1 2 . 1 1 Average Overweight (x) . | . . . . . . Largest Inventory Capacity 5 | 5 5 5 5 5 5 Average Capacity 5 | 5 5 5 5 5 5 Most Carried 5 | 4 5 5 4 5 5 Average Carried 4 | . 4 4 4 4 4 Final Capacity 5 | 5 5 5 5 5 5 Final Carried 5 | . 5 4 4 5 3 Class Distribution -------------------- 100% | Mutant Dominant Class ---------------- Mutant | -10/Materials Mutant | -9/Materials Mutant | -9/Mines Mutant | -8/Materials Mutant | -8/Storage Resources | -11 -10 -9 -9 -8 -8 ----------- Run | Yrd Mat Mat Min Mat Sto Matter Collected 576 | 191 . 325 . 50 10 Remotely . | . . . . . . Salvage Created 861 | 28 . 678 . 52 103 Parts 38 | 2 . 28 . 1 7 Haulers Intercepted 4 | . . 3 . . 1 Recyclers Shooed . | . . . . . . Parts Field Recycled . | . . . . . . Retrieved Matter . | . . . . . . Parts Self-Destructed . | . . . . . . Prevented . | . . . . . . Parts Restored . | . . . . . . Kills | -11 -10 -9 -9 -8 -8 ------- Run | Yrd Mat Mat Min Mat Sto Combat Hostiles Destroyed 14 | . . 11 . 1 2 Melee 7 | . . 6 . . 1 Classes Destroyed 10 | 1 . 8 . . 1 Worker 1 | . . 1 . . . Tunneler 1 | 1 . . . . . Hauler 4 | . . 3 . . 1 Recycler 1 | . . 1 . . . Operator 1 | . . 1 . . . Watcher 1 | . . 1 . . . Swarmer 1 | . . . . . 1 Grunt 6 | . . 6 . . . Brawler 1 | . . 1 . . . Sentry 6 | . . 4 . 1 1 Best Kill Streak 6 | 1 . 6 . 1 2 Combat Bots Only 4 | . . 4 . 1 1 Max Kills in Single Turn 1 | 1 . 1 . 1 1 Gunslinging . | . . . . . . Exploded . | . . . . . . Melee 1 | . . 1 . . 1 Uniques/NPCs Destroyed . | . . . . . . Combat | -11 -10 -9 -9 -8 -8 -------- Run | Yrd Mat Mat Min Mat Sto Hostile Shots Fired 119 | . . 45 . 4 70 Missed 36 | . . 14 . 1 21 Hits 83 | . . 31 . 3 49 Melee 7 | . . . . . 7 Projectile 76 | . . 31 . 3 42 Critical Strikes 4 | . . 1 . . 3 Damage Taken 1163 | . . 423 . 52 688 Core 372 | . . 141 . 18 213 Absorbed by Shields . | . . . . . . Core Remaining (%) 88 | 100 100 . 64 . . Volleys Fired 13 | 13 . . . . . Largest 2 | 2 . . . . . Hottest 80 | 80 . . . . . Shots Fired 26 | 26 . . . . . Gun 26 | 26 . . . . . Cannon . | . . . . . . Launcher . | . . . . . . Special . | . . . . . . Kinetic . | . . . . . . Thermal 26 | 26 . . . . . Explosive . | . . . . . . Electromagnetic . | . . . . . . Robot Hit Streak 4 | 4 . . . . . Robot Miss Streak 3 | 3 . . . . . Penetration Max . | . . . . . . Secondary Targets . | . . . . . . Shots Hit Robots 66 | 8 . 39 . 2 17 Core Hits 13 | 2 . 9 . . 2 Critical Kills 4 | . . 3 . . 1 Critical Parts Destroyed 11 | . . 10 . 1 . Critical Strikes 16 | . . 14 . 1 1 Smash 16 | . . 14 . 1 1 Melee Attacks 91 | . . 58 . 2 31 Impact 81 | . . 58 . 2 21 Slashing 10 | . . . . . 10 Piercing . | . . . . . . Sneak Attacks 11 | . . 10 . . 1 Combat Hostiles 1 | . . 1 . . . Follow-up Attacks 27 | . . 15 . 1 11 Damage Inflicted 2630 | 110 . 1796 . 82 642 Guns 110 | 110 . . . . . Cannons . | . . . . . . Explosions . | . . . . . . Melee 2520 | . . 1796 . 82 642 Ramming . | . . . . . . Kinetic . | . . . . . . Thermal 110 | 110 . . . . . Explosive . | . . . . . . Electromagnetic . | . . . . . . Impact 2449 | . . 1796 . 82 571 Slashing 71 | . . . . . 71 Piercing . | . . . . . . Highest Corruption 6 | . . . . . 6 Average Corruption 3 | . . . . . 3 Corruption Purged . | . . . . . . Corruption Blocked . | . . . . . . Effects 1 | . . . . . 1 Parts Rejected 1 | . . . . . 1 Overload Shots . | . . . . . . Overflow Damage 755 | . . 669 . 40 46 Projectiles . | . . . . . . Explosions . | . . . . . . Melee 755 | . . 669 . 40 46 Knockbacks 9 | . . 6 . . 3 Impact 9 | . . 6 . . 3 Kinetic . | . . . . . . Secondary . | . . . . . . Self-Inflicted Damage . | . . . . . . Shots . | . . . . . . Rammed . | . . . . . . Targets Rammed . | . . . . . . Kicked . | . . . . . . Crushed . | . . . . . . Highest Temperature 55 | 55 . 6 . . . Average Temperature 33 | 34 . 6 . . . Received Heat Transfer 414 | . . 198 . 9 207 Siege Activations . | . . . . . . Martial Activations . | . . . . . . Shielding Activations . | . . . . . . Robots Disrupted . | . . . . . . Combat Hostiles . | . . . . . . Robots Corrupted 7 | . . 5 . 1 1 Combat Hostiles 7 | . . 5 . 1 1 Parts Fried 16 | . . 13 . 3 . Impact Corruptions 23 | . . 19 . 1 3 Robots Melted . | . . . . . . Combat Hostiles . | . . . . . . Parts Melted . | . . . . . . Heat Transferred 250 | 250 . . . . . Parts Sabotaged . | . . . . . . Parts Stolen . | . . . . . . Parts Stripped . | . . . . . . Power Chain Reactions . | . . . . . . Alert | -11 -10 -9 -9 -8 -8 ------- Run | Yrd Mat Mat Min Mat Sto Maximum Alert Level . | . . . . . . Low Security (%) 100 | 100 100 100 100 100 100 Level 1 . | . . . . . . Level 2 . | . . . . . . Level 3 . | . . . . . . Level 4 . | . . . . . . Level 5 . | . . . . . . High Security . | . . . . . . Max Security . | . . . . . . Peak Influence 155 | 5 45 155 57 44 85 Initial 57 | . . 5 57 . 18 Average 23 | . 17 30 13 6 43 Influence Increases 652 | 5 45 421 . 64 117 Destroy 0b10 Robot/C 280 | . . 220 . 20 40 Destroy 0b10 Robot/NC 45 | 5 . 35 . . 5 Destroy Leader 90 | . . 68 . 10 12 Successful Hack 24 | . . 20 . 4 . Disable Machine 15 | . . . . . 15 Destroy Structure 3 | . . 3 . . . Partial Spotted 90 | . . 30 . 30 30 Lose Combat Pursuer 105 | . 45 45 . . 15 Influence Decreases 652 | 5 30 289 147 20 161 Entered New Map 126 | . . 10 90 . 26 Time Decay 386 | 5 30 224 57 20 50 Lost Part 95 | . . 10 . . 85 Purge Threat 45 | . . 45 . . . Squads Dispatched 2 | . 1 1 . . . Investigation 1 | . 1 . . . . Extermination . | . . . . . . Reinforcement 1 | . . 1 . . . Assault . | . . . . . . Garrison . | . . . . . . Intercept . | . . . . . . Searches Triggered . | . . . . . . Construction Impeded . | . . . . . . Haulers Reinforced . | . . . . . . Active Scanning Responses . | . . . . . . Cargo Convoy Interrupts . | . . . . . . Stealth | -11 -10 -9 -9 -8 -8 --------- Run | Yrd Mat Mat Min Mat Sto Distress Signals 1 | . . 1 . . . Communications Jammed . | . . . . . . Distress Signals . | . . . . . . Times Spotted 30 | . 1 20 . 2 7 Peak Tracking Total 6 | . 3 6 . 2 5 Tactical Retreats 5 | . 1 3 . . 1 Traps | -11 -10 -9 -9 -8 -8 ------- Run | Yrd Mat Mat Min Mat Sto Traps Triggered 3 | . 1 1 . . 1 Indirectly . | . . . . . . Trap Hack Attempts . | . . . . . . Triggered . | . . . . . . Disarmed . | . . . . . . Reprogrammed . | . . . . . . Reused . | . . . . . . Traps Extracted . | . . . . . . Installed . | . . . . . . Triggered . | . . . . . . Machines | -11 -10 -9 -9 -8 -8 ---------- Run | Yrd Mat Mat Min Mat Sto Machines Disabled 1 | . . . . . 1 Max in Single Turn 1 | . . . . . 1 Machines Repaired . | . . . . . . Machines Dismantled . | . . . . . . Machines Sabotaged . | . . . . . . Overloaded Fab Kills . | . . . . . . Hacking | -11 -10 -9 -9 -8 -8 --------- Run | Yrd Mat Mat Min Mat Sto Machines Accessed 5 | . . 3 . 2 . Terminals 4 | . . 2 . 2 . Fabricators . | . . . . . . Repair Stations . | . . . . . . Recycling Units . | . . . . . . Scanalyzers 1 | . . 1 . . . Garrison Access . | . . . . . . Total Hacks 16 | . . 12 . 4 . Successful 8 | . . 6 . 2 . Failed 8 | . . 6 . 2 . Catastrophic . | . . . . . . Database Lockouts . | . . . . . . Manual 14 | . . 10 . 4 . Terminals 15 | . . 11 . 4 . Fabricators . | . . . . . . Repair Stations . | . . . . . . Recycling Units . | . . . . . . Scanalyzers 1 | . . 1 . . . Garrison Access . | . . . . . . Terminal Hacks 2 | . . 2 . . . Unreport Threat 1 | . . 1 . . . Zone Layout 1 | . . 1 . . . Fabricator Hacks . | . . . . . . Repair Station Hacks . | . . . . . . Recycling Unit Hacks . | . . . . . . Scanalyzer . | . . . . . . Garrison Access Hacks . | . . . . . . Unauthorized Hacks 6 | . . 4 . 2 . Terminals 6 | . . 4 . 2 . Botnet 2 | . . 2 . . . Skim 4 | . . 2 . 2 . Fabricators . | . . . . . . Repair Stations . | . . . . . . Recycling Units . | . . . . . . Scanalyzers . | . . . . . . Garrison Access . | . . . . . . Data Cores Recovered . | . . . . . . Used . | . . . . . . Hacking Detections 4 | . . 2 . 2 . Full Trace Events . | . . . . . . Feedback Events . | . . . . . . Feedback Blocked . | . . . . . . Robot Schematics Acquired . | . . . . . . Robots Built . | . . . . . . Authchips . | . . . . . . Time . | . . . . . . Total Robot Build Rating . | . . . . . . Part Schematics Acquired . | . . . . . . Parts Built . | . . . . . . Authchips . | . . . . . . Time . | . . . . . . Total Part Build Rating . | . . . . . . Part Studies Acquired . | . . . . . . Parts Repaired . | . . . . . . Time . | . . . . . . Parts Recycled . | . . . . . . Recycled Matter . | . . . . . . Retrieved Matter . | . . . . . . Retrieved Components . | . . . . . . Parts Scanalyzed . | . . . . . . Part Schematics Acquired . | . . . . . . Parts Damaged . | . . . . . . Bothacking | -11 -10 -9 -9 -8 -8 ------------ Run | Yrd Mat Mat Min Mat Sto Used RIF Installer . | . . . . . . Robots Hacked . | . . . . . . Non-combat . | . . . . . . Combat . | . . . . . . Robot Hacks Applied . | . . . . . . Relay Couplers Released . | . . . . . . Fabnet Peak Effective % . | . . . . . . Robots Rewired . | . . . . . . Allies Hacked . | . . . . . . Hacks Repelled . | . . . . . . Allies | -11 -10 -9 -9 -8 -8 -------- Run | Yrd Mat Mat Min Mat Sto Total Allies . | . . . . . . Largest Group . | . . . . . . Highest-Rated Group . | . . . . . . Highest-Rated Ally . | . . . . . . Total Orders . | . . . . . . Ally Attacks . | . . . . . . Total Damage . | . . . . . . Kills . | . . . . . . Allies Corrupted . | . . . . . . Allies Melted . | . . . . . . Intel | -11 -10 -9 -9 -8 -8 ------- Run | Yrd Mat Mat Min Mat Sto Active Infowar (turns) 838 | 2 24 342 278 90 102 Optics 812 | . . 342 278 90 102 Terrain 26 | 2 24 . . . . Robot Analysis Total . | . . . . . . Derelict Logs Recovered 1 | . . . 1 . . Drone Launches . | . . . . . . Drone Recoveries . | . . . . . . Exploration | -11 -10 -9 -9 -8 -8 ------------- Run | Yrd Mat Mat Min Mat Sto Turns Passed 1313 | 84 121 629 278 90 111 Spaces Moved 1195 | 69 167 450 291 128 90 Core 239 | 69 167 3 . . . Treads 194 | . . 194 . . . Legs . | . . . . . . Wheels . | . . . . . . Hover 762 | . . 253 291 128 90 Flight . | . . . . . . Fastest Speed 50 | 50 50 56 56 56 56 Average Speed 73 | 50 55 101 56 59 57 Slowest Speed 160 | 50 100 160 56 116 120 Overloaded Moves . | . . . . . . Propulsion Burnouts . | . . . . . . Robots Hopped . | . . . . . . Potential Cave-ins . | . . . . . . Cave-ins Triggered . | . . . . . . Exploration Rate (%) 33 | 3 35 29 83 17 34 Regions Visited 5 Branch Regions 2 Pre-discovered Areas . | . . . . . . Known Exits Taken 1 | . . . . 1 . Unknown Exits Taken 4 | 1 1 1 1 . . Scrap Searched . | . . . . . . Spaces Dug 2 | . . 2 . . . Terrain Destroyed 2 | . . 2 . . . Melee 2 | . . 2 . . . Projectile . | . . . . . . AOE . | . . . . . . Terrain Rammed . | . . . . . . Walls Destroyed . | . . . . . . Machines Disabled . | . . . . . . Actions | -11 -10 -9 -9 -8 -8 --------- Run | Yrd Mat Mat Min Mat Sto Total 1500 | 91 196 556 405 140 112 Wait 165 | . 9 39 115 . 2 Move 1190 | 68 166 449 290 127 90 Hop . | . . . . . . Pick Up 23 | 5 5 10 . 3 . Fast Attach 13 | . 5 5 . 2 1 Attach 15 | 5 . 5 . 3 2 Detach 6 | . 4 . . 2 . Swap 4 | . 1 3 . . . Drop 20 | . 6 12 . 2 . Fire 13 | 13 . . . . . Melee 51 | . . 33 . 1 17 Ram . | . . . . . . Kick . | . . . . . . Crush . | . . . . . . Escape Stasis . | . . . . . . Rewire . | . . . . . . Trap . | . . . . . . Miscellaneous . | . . . . . . Route ------- -11/Scrapyard -10/Materials (discovered 3 exits: *Mat / [*Min x2]) -9/Materials -9/Mines -8/Materials (discovered 2 exits: *Sto x2) -8/Storage History --------- Turn | Location | Event 4 | -11/Scrapyard | Discovered new exit (range 16) 85 | -11/Scrapyard | Entered Materials 113 | -10/Materials | Discovered new exit (range 9) 126 | -10/Materials | Discovered new exit (range 9) 147 | -10/Materials | Discovered new exit (range 5) 206 | -10/Materials | Entered another Materials area 206 | -9/Materials | Evolved 2 slots: Weapon x2 306 | -9/Materials | Build established: Mutant 822 | -9/Materials | Discovered new exit (range 17) 835 | -9/Materials | Entered Mines 849 | -9/Mines | Met a Derelict bent on vengeance 1063 | -9/Mines | Learned 4 Materials zone layouts 1108 | -9/Mines | Discovered new exit (range 10) 1113 | -9/Mines | Entered Materials 1113 | -8/Materials | Evolved 2 slots: Weapon x2 1114 | -8/Materials | Identified exit to Storage 1203 | -8/Materials | Entered Storage 1314 | -8/Storage | Self-destructed Last Messages --------------- Trooper. 01292_ Imp. Hover Unit destroyed. 01295_ Imp. Signal Interpreter destroyed. 01295_ System corrupted by crushing effect (+2). 01295_ Knocked back. 01301_ Imp. Hover Unit destroyed. 01301_ Knocked back. 01303_ Critical hit (Burn: +37). 01304_ System corrupted: Mining Claw rejected. 01305_ Visual Processing Unit destroyed. 01305_ System corrupted by crushing effect (+4). 01307_ Mining Claw follow-up attack on B-36 Bruiser. 01307_ Hvy. Hammer follow-up attack on B-36 Bruiser. 01308_ Mining Claw destroyed. 01308_ Imp. Hover Unit destroyed. 01311_ Hvy. Hammer follow-up attack on B-36 Bruiser. 01312_ Mining Claw destroyed. Map ----- +----------------------------------------------------+ | ?????????????????????????????????????????????????? | | ?????????????????????????????????????????????????? | | ?????????????????????????????????????????????????? | | ?????????????????????????????????????????????????? | | ?????????????????????????????????????????????????? | | ?????????????????????????????????????????????????? | | ?????????????????????????????????????????????????? | | ?????????????????????????????????????????????????? | | ?????????????????????????????????????????????????? | | ?????????????????????????????????????????????????? | | ?????????????????????????????????????????????????? | | ?????????????????????????????????????????????????? | | ?????????????????????????????????????????????????? | | ?????????????????????????????????????????????????? | | ?????????????????????????????????????????????????? | | ?????????????????????????????????????????????????? | | ???????????????????????????#####?????????????????? | | ??????????????????########## #?????????????????? | | ??????????????????# # #?????????????????? | | ??????????????????#""" # #?????????????????? | | ??????????????????#""" ! # #?????????????????? | | ??????????????????#""" # #?????????????????? | | ??????????????????# + #?????????????????? | | ??????????????????#""" g Y# ###########???????? | | ??????????????????#""" bg# #???????? | | ??????????????????#""" @ # +???????? | | ??????????????????# *[# #???????? | | ??????????????????########%# ###### #???????? | | ????????????????????######## #/ !#!! #???????? | | ????????????????????""""" ?# # !%+[= #??###### | | ????????????????????""""" # # /!#! #??# | | ?????????????????# """"" # # # #??# | | ?????????????????# + # ]]]# #??# """" | | ?????????????????# # # ]]]# #??# """" | | ?????????????????# # + ]] # #### """" | | ?????????????????# ?# # # + """" | | ?????????????????# ?+ ######/## # | | ?????????????????## #####??##+##??# # # | | ??????????????????#???????????????# + # | | ??????????????????????????????????# # ##+### | | ??????????????????????????????????# # #?? | | ??????????????????????????????????# # +?? | | ??????????????????????????????????# # #?? | | ??????????????????????????????????# # // #?? | | ??????????????????????????????????# # // #?? | | ??????????????????????????????????# # #?? | | ??????????????????????????????????###### ### | | ???????????????????????????????????????# | | ???????????????????????????????????????#+##+###### | | ????????????????????????????????????????? ???? | +----------------------------------------------------+ Best States ------------- Heat Dissipation 31 Energy Generation 5 Energy Capacity 100 Matter Stores 300 Matter Capacity 300 Sight Range 18 Terrain Scan Range 16 Terrain Scan Density 85 Armor Coverage 150 Evasion (%) 53 Recoil Reduction 2 Item Schematics ----------------- None Robot Schematics ------------------ None Fabricated ------------ Nothing Repaired ---------- Nothing Studied --------- None Alien Tech Used ----------------- None Achievements -------------- None Challenges ------------ None Game ------ Seed QuantumDecoderFragment Manual? 0 Play Time 00:16:54 Cumulative 101.4 hours Start 2026.04.03 @ 14:42:47 End 2026.04.03 @ 15:00:01 Sessions 1 Manual Loads 0 Difficulty Rogue Special Mode None Game No. 76 Rogue 76 Adventurer 0 Explorer 0 Win Type - Total 1 Types 0/0/0/1/0/0/0/0/0/0 Lore% 45 Gallery% 50 Achievement% 47 Wizard Run 0 Options --------- Layout 2 ASCII 0 Keyboard 0 Movement Mouse Keybinds 0 Fullscreen 1 Font 48/Smallcaps Map View 50x44 Zoom Use 0% Tactical HUD 1 Map Filters NONE Filters NONE Steam 1 RUN: cee66e12-ca78-49b3-bad2-b0bfa4eb35bf